fUSD/lending_fUSD_20260215
["ID","MTS","AMOUNT","RATE_DAILY","PERIOD"]
[405384945,1771113938844,-260.56399605,0.00019,2]
[405384953,1771114232272,-512.0,0.00019,2]
[405384954,1771114232282,-672.0,0.00025423,10]
[405384955,1771114232294,-872.7,0.00034554,2]
[405384956,1771114232304,-752.67,0.00035666,3]
[405384957,1771114232313,-60.52026542,0.00035674,3]
[405384958,1771114232326,-635.49,0.00035674,3]
[405384959,1771114232339,-503.98973458,0.00035674,3]
[405384960,1771114232349,-400.0,0.00035674,2]
[405384961,1771114232359,-53.87876782,0.00035674,3]
[405384962,1771114232371,-357.56662876,0.00035674,3]
[405384963,1771114232383,-300.1692,0.00035674,3]
[405385001,1771114238363,-888.38540342,0.00035674,3]
[405385002,1771114238373,-37.10221134,0.00035675,15]
[405385003,1771114238386,-366.76754345,0.00035675,15]
[405385004,1771114238395,-0.23245655,0.00035675,15]
[405385005,1771114238412,-499.76754345,0.00035675,15]
[405385006,1771114238422,-634.94190828,0.00035675,15]
[405385007,1771114238432,-500.0,0.00035675,15]
[405385008,1771114238442,-500.0,0.00035675,15]
[405385009,1771114238452,-500.0,0.00035675,15]
[405385010,1771114238462,-500.0,0.00035675,15]
[405385011,1771114238472,-500.0,0.00035675,15]
[405385012,1771114238481,-500.0,0.00035675,15]
[405385013,1771114238491,-500.0,0.00035675,15]
[405385014,1771114238501,-500.0,0.00035675,15]
[405385015,1771114238511,-500.0,0.00035675,15]
[405385016,1771114238521,-500.0,0.00035675,15]
[405385017,1771114238531,-500.0,0.00035675,15]
[405385018,1771114238540,-500.0,0.00035675,15]
[405385019,1771114238551,-500.0,0.00035675,15]
[405385020,1771114238560,-500.0,0.00035675,15]
[405385021,1771114238570,-500.0,0.00035675,15]
[405385022,1771114238580,-500.0,0.00035675,15]
[405385023,1771114238590,-500.0,0.00035675,15]
[405385024,1771114238599,-500.0,0.00035675,15]
[405385025,1771114238609,-500.0,0.00035675,15]
[405385026,1771114238619,-500.0,0.00035675,15]
[405385027,1771114238629,-500.0,0.00035675,15]
[405385028,1771114238639,-500.0,0.00035675,15]
[405385029,1771114238649,-500.0,0.00035675,15]
[405385030,1771114238659,-500.0,0.00035675,15]
[405385031,1771114238668,-190.44410704,0.00035675,15]
[405385032,1771114238678,-500.0,0.00035675,15]
[405385033,1771114238687,-500.0,0.00035675,15]
[405385034,1771114238697,-292.20378863,0.00035675,15]
[405385035,1771114238707,-389.29227235,0.00035675,2]
[405385036,1771114238716,-201.27079359,0.00035675,2]
[405385037,1771114238734,-13620.87958666,0.00035676,2]
[405385038,1771114238749,-1120.43290127,0.00035676,2]
[405385041,1771114240351,-755.2444425,0.00035676,2]
[405385048,1771114245432,-1510.13526797,0.00035676,2]
[405385049,1771114245444,-1894.1754418,0.00035676,2]
[405385050,1771114245455,-253.69681801,0.00035676,2]
[405385051,1771114246325,-2600.0,0.00035676,2]
[405385254,1771115431411,-162.04,0.00026608,2]
[405385255,1771115431421,-162.04,0.00027749,2]
[405385256,1771115431431,-351.272,0.00028221,2]
[405385257,1771115431442,-794.728,0.00028221,2]
[405385258,1771115431451,-300.0,0.00028221,2]
[405385259,1771115431461,-430.40931268,0.00028222,2]
[405385260,1771115431480,-308.29206342,0.00028222,2]
[405385261,1771115431491,-2088.8,0.00028222,2]
[405385262,1771115431553,-592.36206145,0.00028222,2]
[405385263,1771115431570,-1496.85,0.00028222,2]
[405385264,1771115431585,-1050.28656245,0.00028222,2]
[405385265,1771115431594,-165.612,0.00028222,2]
[405385266,1771115431604,-162.04,0.00028889,2]
[405385267,1771115431615,-162.04,0.00030029,2]
[405385268,1771115431625,-337.0,0.00030471,2]
[405385269,1771115431634,-162.04,0.0003117,2]
[405385270,1771115431644,-162.04,0.0003231,2]
[405385271,1771115431655,-162.04,0.0003345,2]
[405385272,1771115431665,-162.04,0.00034591,2]
[405385273,1771115431675,-5000.0,0.00034874,2]
[405385274,1771115431685,-161.85,0.0003497,40]
[405385275,1771115431695,-10000.0,0.00035,3]
[405385276,1771115431705,-166.66,0.00035597,2]
[405385277,1771115431714,-161.0,0.000356,120]
[405385278,1771115431724,-455.1646886,0.0003567,2]
[405385279,1771115431734,-350.36304516,0.0003567,2]
[405385280,1771115431743,-174.1706723,0.00035675,2]
[405385282,1771115431753,-319.1001892,0.00035675,2]
[405385284,1771115431763,-242.06205949,0.00035676,2]
[405385286,1771115431772,-181.14371424,0.000357,2]
[405385290,1771115431781,-162.04,0.00035731,2]
[405385293,1771115431791,-500.0,0.00035769,15]
[405385296,1771115431801,-500.0,0.00035769,15]
[405385298,1771115431811,-465.60490078,0.00035769,15]
[405385300,1771115431820,-151.19282811,0.0003577,2]
[405385302,1771115431830,-261.68,0.000358,14]
[405385304,1771115431841,-229.88,0.000358,14]
[405385305,1771115431851,-300.0,0.000358,13]
[405385306,1771115431862,-8000.0,0.0003587,4]
[405385307,1771115431873,-600.0,0.000359,13]
[405385308,1771115431884,-333.0,0.00036177,3]
[405385309,1771115431894,-266.0,0.00036178,26]
[405385310,1771115431905,-155.0,0.00036178,15]
[405385311,1771115431916,-333.0,0.00036178,15]
[405385312,1771115431926,-444.0,0.00036178,44]
[405385313,1771115431936,-333.0,0.00036178,33]
[405385314,1771115431947,-181.399,0.00036178,44]
[405385315,1771115431957,-762.188,0.00036178,44]
[405385316,1771115431967,-366.0,0.00036179,2]
[405385317,1771115431977,-366.0,0.00036179,2]
[405385318,1771115431993,-366.0,0.00036199,45]
[405385319,1771115432002,-535.20832,0.00036488,30]
[405385320,1771115432012,-20688.91918463,0.00036519,26]
[405385321,1771115432022,-1000.0,0.00036519,2]
[405385322,1771115432032,-350.36304511,0.00036592,2]
[405385323,1771115432042,-181.14371423,0.00036618,2]
[405385324,1771115432051,-535.20832,0.00036688,30]
[405385325,1771115432062,-166.66,0.00036772,2]
[405385326,1771115432074,-162.04,0.00036871,2]
[405385327,1771115432083,-3349.41796782,0.00036878,2]
[405385328,1771115432093,-535.20832,0.00036888,30]
[405385329,1771115432103,-1784.0277,0.00036888,7]
[405385330,1771115432114,-150.0,0.00037049,2]
[405385331,1771115432124,-455.16468858,0.00037053,2]
[405385332,1771115432135,-535.20832,0.00037088,30]
[405385333,1771115432145,-535.20832,0.00037288,30]
[405385334,1771115432154,-2751.0,0.00037356,120]
[405385335,1771115432166,-500.0,0.0003737,20]
[405385336,1771115432175,-535.20832,0.00037488,30]
[405385337,1771115432184,-350.36304511,0.00037513,2]
[405385338,1771115432194,-181.14371423,0.00037537,2]
[405385339,1771115432203,-839.77,0.00037612,30]
[405385340,1771115432215,-152.81,0.00037681,120]
[405385341,1771115432225,-535.20832,0.00037688,30]
[405385342,1771115432235,-1000.0,0.00037693,2]
[405385343,1771115432245,-200.0,0.0003775,2]
[405385344,1771115432255,-2794.37,0.00037796,2]
[405385345,1771115432265,-535.20832,0.00037888,30]
[405385346,1771115432276,-261.68,0.000379,14]
[405385347,1771115432285,-229.88,0.000379,14]
[405385348,1771115432295,-166.66,0.00037947,2]
[405385349,1771115432304,-200.0,0.00038001,2]
[405385350,1771115432314,-162.04,0.00038012,2]
[405385351,1771115432323,-1448.62,0.00038036,2]
[405385352,1771115432334,-535.20832,0.00038088,30]
[405385353,1771115432347,-535.20832,0.00038288,30]
[405385354,1771115432358,-500.0,0.00038373,5]
[405385355,1771115432368,-500.0,0.00038373,5]
[405385356,1771115432378,-500.0,0.00038373,5]
[405385357,1771115432389,-500.0,0.00038373,5]
[405385358,1771115432399,-500.0,0.00038373,5]
[405385359,1771115432409,-500.0,0.00038373,3]
[405385360,1771115432421,-500.0,0.00038373,5]
[405385361,1771115432431,-500.0,0.00038373,5]
[405385362,1771115432441,-500.0,0.00038373,5]
[405385363,1771115432451,-500.0,0.00038373,5]
[405385364,1771115432462,-455.16468858,0.00038435,2]
[405385365,1771115432472,-350.36304511,0.00038435,2]
[405385366,1771115432482,-181.14371423,0.00038455,2]
[405385367,1771115432492,-535.20832,0.00038488,30]
[405385368,1771115432501,-1663.15,0.000386,120]
[405385369,1771115432512,-535.20832,0.00038688,30]
[405385370,1771115432523,-1029.31327553,0.00038921,5]
[405385371,1771115432534,-1000.0,0.00038921,5]
[405385372,1771115432546,-1000.0,0.00038921,5]
[405385373,1771115432559,-1000.0,0.00038921,3]
[405385374,1771115432570,-1000.0,0.00038921,5]
[405385375,1771115432585,-1000.0,0.00038921,5]
[405385376,1771115432595,-535.20832,0.00039088,30]
[405385377,1771115432605,-166.66,0.00039122,2]
[405385378,1771115432615,-535.20832,0.00039288,30]
[405385379,1771115432625,-350.36304511,0.00039357,2]
[405385380,1771115432636,-181.14371423,0.00039373,2]
[405385381,1771115432647,-20560.36444759,0.000394,7]
[405385385,1771115437460,-580.23789574,0.000394,7]
[405385386,1771115437471,-583.72885539,0.000394,7]
[405385391,1771115437517,-7530.09649591,0.000394,7]
[405385393,1771115439582,-1521.190011,0.000394,7]
[405385394,1771115439594,-801.50990235,0.000394,7]
[405385395,1771115439762,-1383.71753629,0.000394,7]
[405385400,1771115445375,-508.0,0.00019,2]
[405385401,1771115445385,-7252.01047442,0.000394,7]
[405385402,1771115445616,-379.98750326,0.000394,7]
[405385411,1771115447799,-495.72,0.000394,7]
[405385526,1771116631494,-509.07034,0.00019,2]
[405385527,1771116631504,-135.75966,0.000209,2]
[405385528,1771116631516,-114.24034,0.000209,2]
[405385529,1771116631526,-1500.0,0.00034795,2]
[405385530,1771116631536,-2000.0,0.000359,2]
[405385531,1771116631545,-191.48895264,0.000378,2]
[405385532,1771116631557,-117.51104736,0.000378,2]
[405385533,1771116631566,-302.0,0.000378,2]
[405385534,1771116631576,-727.25,0.00038033,2]
[405385535,1771116631585,-260.09410776,0.00038327,2]
[405385536,1771116631595,-446.81660262,0.00038327,2]
[405385537,1771116631604,-685.26623157,0.00038372,5]
[405385538,1771116631615,-54.73376843,0.00038372,5]
[405385539,1771116631625,-500.0,0.00038373,5]
[405385540,1771116631634,-300.0,0.00038373,3]
[405385541,1771116631644,-500.0,0.00038373,5]
[405385542,1771116631653,-303.37475961,0.00038411,15]
[405385544,1771116631664,-500.0,0.00038411,15]
[405385546,1771116631674,-228.44217932,0.00038411,15]
[405385548,1771116631686,-23.29248145,0.00038411,15]
[405385549,1771116631696,-605.79586612,0.00038411,15]
[405385550,1771116631706,-500.0,0.00038411,15]
[405385551,1771116631715,-151.86627318,0.00038411,15]
[405385552,1771116631725,-50796.81034679,0.00038412,26]
[405385553,1771116631735,-219419.38530783,0.00038412,2]
[405385563,1771116637811,-17434.3958712,0.00038412,2]
[405385564,1771116637863,-14161.79383668,0.00038412,2]
[405385565,1771116637969,-3119.86958993,0.00038412,2]
[405385570,1771116645499,-509.0,0.00019,2]
[405385571,1771116645509,-150.9530952,0.00038327,2]
[405385572,1771116645519,-8435.28403051,0.00038412,2]
[405385573,1771116645552,-579.6,0.00038412,2]
[405385574,1771116645763,-275.99999997,0.00038412,2]
[405385575,1771116645817,-3537.76504554,0.00038412,2]
[405385576,1771116645872,-4335.26902133,0.00038412,2]
[405385579,1771116645884,-1038.39988,0.00038412,2]
[405385584,1771116645927,-294193.51897608,0.00038412,2]
[405385586,1771116645981,-411.48856874,0.00038412,2]
[405385624,1771117831812,-158.41,0.000146,2]
[405385625,1771117831822,-151.0,0.00014634,2]
[405385626,1771117831832,-509.0,0.00019,2]
[405385627,1771117831842,-164.43,0.0003,2]
[405385628,1771117831851,-841.0,0.000342,11]
[405385629,1771117831861,-219.0402,0.00035888,30]
[405385630,1771117831871,-219.0402,0.00036088,30]
[405385631,1771117831880,-2000.0,0.000362,2]
[405385632,1771117831890,-219.0402,0.00036288,30]
[405385633,1771117831899,-761.33462282,0.00036341,2]
[405385634,1771117831911,-4562.49537718,0.00036341,2]
[405385635,1771117831921,-219.0402,0.00036488,30]
[405385636,1771117831931,-410.5701189,0.00036675,2]
[405385637,1771117831941,-219.0402,0.00036688,30]
[405385638,1771117831950,-151.0,0.00036747,14]
[405385639,1771117831960,-425.0,0.00036749,2]
[405385640,1771117831970,-400.0,0.00036749,3]
[405385642,1771117831979,-399.0,0.00036749,3]
[405385644,1771117831991,-25398.4051734,0.0003675,26]
[405385646,1771117832001,-306004.73732296,0.0003675,2]
[405385648,1771117832012,-102245.57151507,0.0003675,2]
[405385651,1771117832024,-30237.63568961,0.0003675,2]
[405385653,1771117832035,-10489.0562939,0.0003675,2]
[405385663,1771117837875,-38263.17494492,0.0003675,2]
[405385664,1771117837887,-172874.81344306,0.0003675,2]
[405385665,1771117837982,-500.0,0.0003675,2]
[405385667,1771117839949,-20834.06910076,0.0003675,2]
[405385668,1771117840059,-150143.60874388,0.0003675,2]
[405385669,1771117840072,-43298.48866076,0.0003675,2]
[405385670,1771117840117,-2290.38582166,0.0003675,2]
[405385671,1771117840133,-2277.0831524,0.0003675,2]
[405385672,1771117840144,-325.47403664,0.0003675,2]
[405385673,1771117840156,-916.81751186,0.0003675,2]
[405385674,1771117840167,-349.195,0.0003675,2]
[405385675,1771117840179,-1938.557369,0.0003675,2]
[405385676,1771117844453,-2092.3769521,0.0003675,2]
[405385677,1771117845824,-7997.34615467,0.0003675,2]
[405385817,1771119032174,-312.5954,0.000177,2]
[405385818,1771119032185,-530.56459999,0.000178,2]
[405385819,1771119032198,-310.05,0.000178,2]
[405385820,1771119032210,-413.38540001,0.000178,2]
[405385821,1771119032221,-800.0,0.00017808,2]
[405385822,1771119032231,-2034.2383133,0.000179,5]
[405385823,1771119032242,-1200.0,0.00017999,2]
[405385824,1771119032252,-153.0,0.00017999,2]
[405385825,1771119032262,-200.0,0.00017999,2]
[405385826,1771119032271,-233.15758109,0.00018,2]
[405385827,1771119032294,-366.15721528,0.00018,2]
[405385828,1771119032305,-1917.42030992,0.00018,2]
[405385829,1771119038032,-476.9799995,0.00017999,2]
[405385830,1771119038164,-23.0200005,0.00017999,2]
[405385831,1771119038174,-484.69285949,0.00017999,2]
[405385832,1771119038296,-15.30714051,0.00017999,2]
[405385833,1771119038306,-500.0,0.00017999,2]
[405385834,1771119038316,-500.0,0.00017999,2]
[405385835,1771119038326,-500.0,0.00017999,2]
[405385836,1771119038336,-500.0,0.00017999,2]
[405385837,1771119038346,-500.0,0.00017999,2]
[405385838,1771119038356,-500.0,0.00017999,2]
[405385839,1771119038366,-500.0,0.00017999,2]
[405385840,1771119038379,-500.0,0.00017999,2]
[405385841,1771119038388,-500.0,0.00017999,2]
[405385842,1771119038397,-500.0,0.00017999,2]
[405385843,1771119038407,-500.0,0.00017999,2]
[405385844,1771119038417,-500.0,0.00017999,2]
[405385845,1771119038427,-500.0,0.00017999,2]
[405385846,1771119038436,-500.0,0.00017999,2]
[405385847,1771119038445,-500.0,0.00017999,2]
[405385848,1771119038455,-500.0,0.00017999,2]
[405385849,1771119038465,-500.0,0.00017999,2]
[405385850,1771119038474,-500.0,0.00017999,2]
[405385851,1771119038483,-545.54138309,0.00017999,2]
[405385852,1771119038492,-500.0,0.00017999,2]
[405385853,1771119038502,-500.0,0.00017999,2]
[405385854,1771119038512,-500.0,0.00017999,2]
[405385855,1771119038522,-500.0,0.00017999,2]
[405385856,1771119038532,-500.0,0.00017999,2]
[405385857,1771119038543,-500.0,0.00017999,2]
[405385858,1771119038552,-500.0,0.00017999,2]
[405385859,1771119038562,-500.0,0.00017999,2]
[405385860,1771119038572,-500.0,0.00017999,2]
[405385861,1771119038585,-76848.37965364,0.00018,2]
[405385862,1771119038594,-111719.264543,0.00018,2]
[405385863,1771119038606,-1283.9074829,0.00018,2]
[405385864,1771119038618,-12190.42460037,0.00018,2]
[405385865,1771119038633,-19448.32808573,0.00018,2]
[405385868,1771119040336,-240428.60114539,0.00018,2]
[405385869,1771119040347,-359.24885402,0.00018899,2]
[405385870,1771119040357,-509.0,0.00019,2]
[405385871,1771119040373,-250.0,0.0001947,2]
[405385872,1771119040383,-359.248854,0.00022482,2]
[405385873,1771119040394,-162.16599577,0.00024755,2]
[405385874,1771119040406,-869.69,0.00024919,2]
[405385875,1771119040416,-175.43,0.00025059,2]
[405385876,1771119040426,-500.0,0.00025059,2]
[405385877,1771119040435,-594.05284132,0.00025333,2]
[405385878,1771119040445,-869.69,0.00025481,2]
[405385879,1771119040455,-869.69,0.00026043,2]
[405385880,1771119040465,-359.248854,0.00026065,2]
[405385881,1771119040475,-869.69,0.00026605,2]
[405385882,1771119040485,-869.69,0.00027167,2]
[405385883,1771119040495,-262.0,0.00027203,10]
[405385884,1771119040505,-869.69,0.00027729,2]
[405385885,1771119040515,-294.0,0.00027815,2]
[405385886,1771119040525,-869.69,0.00028291,2]
[405385887,1771119040536,-176.0,0.00028637,2]
[405385888,1771119040547,-869.69,0.00028853,2]
[405385889,1771119040558,-869.69,0.00029416,2]
[405385890,1771119040568,-359.248854,0.00029648,2]
[405385891,1771119040578,-869.69,0.00029978,2]
[405385892,1771119040588,-2088.8,0.00029999,2]
[405385893,1771119040598,-869.69,0.0003054,2]
[405385894,1771119040611,-869.69,0.00031102,2]
[405385895,1771119040621,-200.0,0.00031603,2]
[405385896,1771119040631,-1000.0,0.00031643,2]
[405385897,1771119040640,-500.0,0.00031663,30]
[405385898,1771119040650,-869.69,0.00031664,2]
[405385899,1771119040661,-500.0,0.00031753,2]
[405385900,1771119040671,-869.69,0.00032226,2]
[405385901,1771119040683,-5284.0,0.00032343,30]
[405385902,1771119040693,-869.69,0.00032788,2]
[405385903,1771119040703,-1723.87371473,0.0003287,4]
[405385904,1771119040713,-359.248854,0.00033232,2]
[405385905,1771119040724,-869.69,0.0003335,2]
[405385906,1771119040734,-1025.24,0.00033424,2]
[405385907,1771119040745,-869.69,0.00033912,2]
[405385908,1771119040757,-150.59,0.00034159,2]
[405385909,1771119040767,-869.69,0.00034474,2]
[405385910,1771119040776,-869.69,0.00035036,2]
[405385911,1771119040787,-869.69,0.00035598,2]
[405385912,1771119040799,-300.0,0.000356,12]
[405385913,1771119040810,-700.0,0.000357,13]
[405385914,1771119040821,-1100.0,0.000358,13]
[405385915,1771119040832,-1400.0,0.000359,13]
[405385916,1771119040842,-180.281,0.00035906,2]
[405385917,1771119040854,-312.18914022,0.00035943,7]
[405385918,1771119040865,-2339.80425516,0.00036,2]
[405385919,1771119040876,-196.75198131,0.00036,2]
[405385920,1771119040887,-3584.41380287,0.00036,2]
[405385921,1771119040897,-509.78115222,0.00036005,30]
[405385922,1771119041115,-356.31,0.000361,14]
[405385923,1771119041127,-396.23,0.000361,2]
[405385924,1771119041137,-37639.14,0.000361,2]
[405385925,1771119041147,-1000.0,0.00036106,2]
[405385926,1771119041157,-179.348,0.00036549,45]
[405385927,1771119041167,-998.397,0.00036549,45]
[405385928,1771119041176,-500.0,0.00036649,30]
[405385929,1771119041186,-500.0,0.00036649,45]
[405385930,1771119041195,-500.0,0.00036649,120]
[405385931,1771119041204,-500.0,0.00036649,120]
[405385932,1771119041214,-500.0,0.00036649,18]
[405385933,1771119041223,-500.0,0.00036649,120]
[405385934,1771119041233,-500.0,0.00036649,30]
[405385935,1771119041243,-2172.17,0.00036725,2]
[405385936,1771119041252,-1001.85399383,0.00036749,2]
[405385937,1771119041262,-200.0,0.00036775,2]
[405385938,1771119041271,-359.248854,0.00036815,2]
[405385939,1771119041281,-13035.76,0.0003685,2]
[405385940,1771119041291,-2339.80425514,0.00036887,2]
[405385941,1771119041300,-219.0402,0.00036888,30]
[405385942,1771119041310,-730.134,0.00036888,7]
[405385943,1771119041320,-150.0,0.00036918,2]
[405385944,1771119041329,-500.0,0.00036958,20]
[405385945,1771119041339,-219.0402,0.00037088,30]
[405385946,1771119041348,-151.0,0.00037174,14]
[405385947,1771119041357,-52469.1996445,0.00037177,2]
[405385948,1771119041367,-174.1706724,0.00037177,2]
[405385949,1771119041376,-1430.7123276,0.00037177,2]
[405385950,1771119041385,-3014.4197812,0.00037177,2]
[405385951,1771119041395,-219.0402,0.00037288,30]
[405385952,1771119041404,-219.0402,0.00037488,30]
[405385953,1771119041414,-150.59,0.00037583,2]
[405385954,1771119041423,-175.43,0.00037588,2]
[405385955,1771119041432,-37639.14,0.000376,2]
[405385956,1771119041442,-219.0402,0.00037688,30]
[405385957,1771119041451,-2339.80425514,0.00037774,2]
[405385958,1771119041461,-219.0402,0.00037888,30]
[405385959,1771119041470,-356.31,0.000379,14]
[405385960,1771119041479,-396.23,0.000379,2]
[405385961,1771119041489,-1000.0,0.00038012,2]
[405385962,1771119041498,-219.0402,0.00038088,30]
[405385963,1771119041508,-397.53809515,0.00038192,2]
[405385964,1771119041517,-219.0402,0.00038288,30]
[405385965,1771119041527,-526.45839897,0.00038373,5]
[405385966,1771119041536,-500.0,0.00038373,5]
[405385967,1771119041546,-538.9555253,0.00038405,2]
[405385968,1771119041556,-241.0,0.0003841,2]
[405385969,1771119041565,-219.0402,0.00038488,30]
[405385970,1771119041575,-166.67,0.00038598,2]
[405385971,1771119041585,-5000.0,0.00038646,120]
[405385972,1771119041596,-240.3856195,0.00038653,2]
[405385973,1771119041606,-2339.80425514,0.0003866,2]
[405385974,1771119041615,-219.0402,0.00038688,30]
[405385975,1771119041625,-787.28,0.00038908,120]
[405385976,1771119041635,-501.91469827,0.00038921,5]
[405385977,1771119041644,-37639.14,0.00039,2]
[405385978,1771119041654,-219.0402,0.00039088,30]
[405385979,1771119041664,-219.0402,0.00039288,30]
[405385980,1771119041675,-87824.34733691,0.000394,7]
[405385981,1771119041685,-300.150836,0.000394,95]
[405385982,1771119041695,-500.0,0.00039473,5]
[405385983,1771119041705,-219.0402,0.00039488,30]
[405385984,1771119041715,-2339.80425514,0.00039547,2]
[405385985,1771119041724,-2000.0,0.000396,2]
[405385986,1771119041734,-356.31,0.000396,14]
[405385987,1771119041743,-396.23,0.000396,30]
[405385988,1771119041753,-400.6,0.00039663,120]
[405385989,1771119041763,-248.07,0.00039664,30]
[405385990,1771119041773,-853.95051918,0.00039672,2]
[405385991,1771119041783,-305.47580211,0.00039672,2]
[405385992,1771119041792,-882.69550246,0.00039672,2]
[405385993,1771119041801,-306.65665438,0.00039672,2]
[405385994,1771119041810,-457.85836137,0.00039672,2]
[405385995,1771119041819,-370.65485711,0.00039672,2]
[405385996,1771119041829,-517.52914438,0.00039672,2]
[405385997,1771119041838,-305.61552746,0.00039672,2]
[405385998,1771119041848,-300.0,0.00039672,2]
[405385999,1771119041857,-1079.8874636,0.00039672,2]
[405386000,1771119041868,-853.95051918,0.00039672,2]
[405386001,1771119041879,-305.47580211,0.00039672,2]
[405386002,1771119041889,-882.69550246,0.00039672,2]
[405386003,1771119041900,-306.65665438,0.00039672,2]
[405386004,1771119041911,-457.85836137,0.00039672,2]
[405386005,1771119041923,-370.65485711,0.00039672,2]
[405386006,1771119041934,-517.52914438,0.00039672,2]
[405386007,1771119041945,-305.61552746,0.00039672,2]
[405386008,1771119041955,-300.0,0.00039672,2]
[405386009,1771119041965,-1079.8874636,0.00039672,2]
[405386010,1771119041976,-853.95051918,0.00039672,2]
[405386011,1771119041985,-305.47580211,0.00039672,2]
[405386012,1771119041995,-882.69550246,0.00039672,2]
[405386013,1771119042005,-306.65665438,0.00039672,2]
[405386014,1771119042016,-457.85836137,0.00039672,2]
[405386015,1771119042026,-370.65485711,0.00039672,2]
[405386016,1771119042037,-517.52914438,0.00039672,2]
[405386017,1771119042048,-305.61552746,0.00039672,2]
[405386018,1771119042058,-464.85007315,0.00039672,2]
[405386019,1771119042068,-1079.8874636,0.00039672,2]
[405386020,1771119042078,-853.95051918,0.00039672,2]
[405386021,1771119042088,-305.47580211,0.00039672,2]
[405386022,1771119042098,-882.69550246,0.00039672,2]
[405386023,1771119042108,-306.65665438,0.00039672,2]
[405386024,1771119042118,-457.85836137,0.00039672,2]
[405386025,1771119042127,-489.88669745,0.00039672,2]
[405386026,1771119042137,-517.52914438,0.00039672,2]
[405386027,1771119042147,-305.61552746,0.00039672,2]
[405386028,1771119042157,-1079.8874636,0.00039672,2]
[405386029,1771119042166,-1138.60069251,0.00039672,2]
[405386030,1771119042176,-407.30106978,0.00039672,2]
[405386031,1771119042185,-1176.92733672,0.00039672,2]
[405386032,1771119042195,-408.87553938,0.00039672,2]
[405386033,1771119042204,-610.47781523,0.00039672,2]
[405386034,1771119042214,-690.03885942,0.00039672,2]
[405386035,1771119042224,-305.61552746,0.00039672,2]
[405386036,1771119042233,-347.32659615,0.00039672,2]
[405386037,1771119042243,-407.4873702,0.00039672,2]
[405386038,1771119042253,-300.0,0.00039672,2]
[405386039,1771119042262,-300.0,0.00039672,2]
[405386040,1771119042271,-300.0,0.00039672,2]
[405386041,1771119042280,-300.0,0.00039672,2]
[405386042,1771119042290,-300.0,0.00039672,2]
[405386043,1771119042299,-300.0,0.00039672,2]
[405386044,1771119042308,-300.0,0.00039672,2]
[405386045,1771119042317,-303.09695723,0.00039672,2]
[405386046,1771119042327,-219.0402,0.00039688,30]
[405386047,1771119042338,-151.0,0.00039726,9]
[405386048,1771119042348,-219.0402,0.00039888,30]
[405386049,1771119042357,-248.07,0.00039938,30]
[405386050,1771119042367,-3584.41380287,0.00039995,2]
[405386051,1771119042376,-500.0,0.00039999,31]
[405386052,1771119042385,-500.0,0.00039999,31]
[405386053,1771119042394,-359.33022723,0.00039999,31]
[405386054,1771119042403,-577.87271656,0.00039999,31]
[405386055,1771119042413,-307.67058901,0.00039999,31]
[405386056,1771119042422,-590.5261772,0.00039999,31]
[405386057,1771119042431,-500.0,0.00039999,31]
[405386058,1771119042440,-151.0,0.0004,9]
[405386059,1771119042449,-155.0,0.0004,120]
[405386060,1771119042457,-153.0,0.0004,120]
[405386061,1771119042465,-693.39,0.0004,120]
[405386062,1771119042473,-259.57,0.0004,120]
[405386063,1771119042482,-150.3,0.0004,120]
[405386064,1771119042491,-349.08,0.0004,120]